[Event "FIDE WYCC Open U14 2023"]
[Site "Montesilvano"]
[Date "2023.11.20"]
[Round "7.35"]
[White "Zhang, Kendrick Botong"]
[Black "Tenuunbold, Battulga"]
[Result "0-1"]
[ECO "B33"]
[WhiteElo "1876"]
[BlackElo "2290"]
[Annotator "RC"]
[PlyCount "64"]
[EventDate "2023.11.13"]
[EventType "swiss"]
[EventCountry "ITA"]
[SourceTitle "playchess.com"]
[Source "ChessBase"]
[SourceQuality "1"]
[TimeControl "40/5400+30:1800+30"]

1. e4 {[%emt 0:00:05]} c5 {[%emt 0:00:04]} 2. Nf3 {[%emt 0:00:04]} e6 {[%emt 0:00:06]} 3. d4 {[%emt 0:00:06]} cxd4 {[%emt 0:00:06]} 4. Nxd4 {[%emt 0:00:23]} Nf6 {[%emt 0:00:05]} 5. Nc3 {[%emt 0:08:33]} Nc6 {[%emt 0:00:06]} 6. Ndb5 {[%emt 0:04:42]} d6 {[%emt 0:00:13]} 7. Bf4 {[%emt 0:10:58]} e5 {[%emt 0:00:33]} 8. Bg5 {[%emt 0:00:10]} a6 {[%emt 0:00:24]} 9. Na3 {[%emt 0:00:10]} Be6 {[%emt 0:00:29]} 10. Nc4 {[%emt 0:07:57]} Rb8 {[%emt 0:01:27]} 11. Ne3 {[%emt 0:06:28]} Be7 {[%emt 0:01:50]} 12. Bxf6 {[%emt 0:08:45]} Bxf6 {[%emt 0:01:24]} 13. Ncd5 {[%emt 0:04:46]} Bg5 {[%emt 0:02:43]} 14. c3 {[%emt 0:04:22]} O-O {[%emt 0:03:35]} 15. Bd3 {[%emt 0:02:16]} Ne7 {[%emt 0:05:27]} 16. Bc2 {[%emt 0:07:20]} Nxd5 {[%emt 0:10:06]} 17. Nxd5 {[%emt 0:04:05]} g6 {[%emt 0:06:13]} 18. Bb3 {[%emt 0:07:46]} Kh8 {[%emt 0:05:12]} 19. O-O {[%emt 0:04:11]} f5 {[%emt 0:01:54]} 20. f3 {[%emt 0:02:23]} Bh6 {[%emt 0:06:38]} 21. Qd3 {[%emt 0:02:34]} Rf7 {[%emt 0:11:04]} 22. Nb4 {[%emt 0:03:10]} Qb6+ {[%emt 0:02:43]} 23. Kh1 {[%emt 0:00:08]} Bxb3 {[%emt 0:00:04]} 24. axb3 {[%emt 0:00:09]} Rbf8 {[%emt 0:00:22]} 25. exf5 {[%emt 0:03:35]} Rxf5 {[%emt 0:01:57]} 26. Ra3 {[%emt 0:02:57]} Qc5 {[%emt 0:06:43]} 27. Rd1 {[%emt 0:03:13]} Bf4 {[%emt 0:04:46]} 28. g3 {[%emt 0:02:43]} Bxg3 {[%emt 0:00:22]} 29. hxg3 {[%emt 0:00:24]} Qf2 {[%emt 0:00:09]} 30. g4 {[%emt 0:00:36]} Rxf3 {[%emt 0:00:02]} 31. Rd2 {[%emt 0:00:29]} Qh4+ {[%emt 0:00:14]} 32. Rh2 {[%emt 0:00:09]} Rf1+ {[%emt 0:00:09]} 0-1

[Event "FIDE WYCC Open U14 2023"]
[Site "Montesilvano"]
[Date "2023.11.21"]
[Round "8.1"]
[White "Vetokhin, Savva"]
[Black "Ljepic, Andrej"]
[Result "1-0"]
[ECO "E00"]
[WhiteElo "2403"]
[BlackElo "2236"]
[Annotator "RC"]
[PlyCount "95"]
[EventDate "2023.11.13"]
[EventType "swiss"]
[EventCountry "ITA"]
[SourceTitle "playchess.com"]
[Source "ChessBase"]
[SourceQuality "1"]
[TimeControl "40/5400+30:1800+30"]

1. d4 {[%emt 0:00:02]} e6 {[%emt 0:00:05]} 2. c4 {[%emt 0:00:11]} Bb4+ {[%emt 0:00:07]} 3. Bd2 {[%emt 0:00:28]} a5 {[%emt 0:00:08]} 4. Nf3 {[%emt 0:00:24]} Nf6 {[%emt 0:00:14]} 5. a3 {[%emt 0:00:33]} Bxd2+ {[%emt 0:00:12]} 6. Qxd2 {[%emt 0:00:09]} d6 {[%emt 0:01:36]} 7. Nc3 {[%emt 0:03:31]} b6 {[%emt 0:01:12]} 8. g3 {[%emt 0:05:05]} Bb7 {[%emt 0:00:14]} 9. Bg2 {[%emt 0:00:05]} Nbd7 {[%emt 0:04:07]} 10. O-O {[%emt 0:04:10]} Ne4 {[%emt 0:05:18]} 11. Nxe4 {[%emt 0:05:46]} Bxe4 {[%emt 0:00:48]} 12. Qf4 {[%emt 0:00:18]} Nf6 {[%emt 0:04:29]} 13. g4 {[%emt 0:06:18]} h6 {[%emt 0:05:05]} 14. h4 {[%emt 0:02:04]} d5 {[%emt 0:09:46]} 15. cxd5 {[%emt 0:08:38]} Qxd5 {[%emt 0:10:05]} 16. Rac1 {[%emt 0:03:45]} c6 {[%emt 0:05:50]} 17. Rc3 {[%emt 0:12:55]} Rd8 {[%emt 0:11:35]} 18. Rfc1 {[%emt 0:02:43]} O-O {[%emt 0:08:41]} 19. g5 {[%emt 0:14:12]} hxg5 {[%emt 0:03:10]} 20. hxg5 {[%emt 0:00:05]} Nh5 {[%emt 0:01:04]} 21. Qg4 {[%emt 0:07:04]} g6 {[%emt 0:04:09]} 22. Ne5 {[%emt 0:03:16]} Bxg2 {[%emt 0:05:57]} 23. Nxc6 {[%emt 0:00:05]} Rd7 {[%emt 0:02:11]} 24. Qxg2 {[%emt 0:00:16]} Qxg2+ {[%emt 0:03:49]} 25. Kxg2 {[%emt 0:00:09]} Nf4+ {[%emt 0:00:04]} 26. Kf3 {[%emt 0:06:46]} Nh3 {[%emt 0:00:14]} 27. Ke3 {[%emt 0:00:05]} Nxg5 {[%emt 0:01:16]} 28. Ne5 {[%emt 0:00:04]} Rd5 {[%emt 0:01:19]} 29. Rc8 {[%emt 0:01:54]} Nh7 {[%emt 0:04:47]} 30. Rxf8+ {[%emt 0:02:20]} Nxf8 {[%emt 0:00:36]} 31. Rc7 {[%emt 0:00:05]} Rb5 {[%emt 0:00:59]} 32. Nd3 {[%emt 0:05:39]} Rd5 {[%emt 0:01:21]} 33. Ne5 {[%emt 0:00:42]} Rb5 {[%emt 0:00:01]} 34. b4 {[%emt 0:00:14]} axb4 {[%emt 0:01:16]} 35. axb4 {[%emt 0:00:03]} Rxb4 {[%emt 0:04:21]} 36. Rxf7 {[%emt 0:01:22]} Rb2 {[%emt 0:01:42]} 37. Re7 {[%emt 0:01:17]} b5 {[%emt 0:00:15]} 38. Ng4 {[%emt 0:00:09]} Nh7 {[%emt 0:00:48]} 39. Rxe6 {[%emt 0:00:17]} Kf7 {[%emt 0:00:21]} 40. d5 {[%emt 0:00:00]} Nf8 {[%emt 0:00:00]} 41. Ne5+ {[%emt 0:00:26]} Kg7 {[%emt 0:00:29]} 42. Rb6 {[%emt 0:00:24]} Rb1 {[%emt 0:01:18]} 43. Rb7+ {[%emt 0:02:03]} Kh6 {[%emt 0:00:58]} 44. Rf7 {[%emt 0:00:58]} Nh7 {[%emt 0:00:05]} 45. d6 {[%emt 0:00:04]} Rd1 {[%emt 0:00:05]} 46. d7 {[%emt 0:00:47]} Ng5 {[%emt 0:00:11]} 47. Rf8 {[%emt 0:00:07]} Ne6 {[%emt 0:00:10]} 48. Re8 {[%emt 0:00:04]} 1-0

[Event "FIDE WYCC Open U14 2023"]
[Site "Montesilvano"]
[Date "2023.11.21"]
[Round "8.2"]
[White "Cieslak, Patryk"]
[Black "Tabuenca Mendataurigoitia, Daniel"]
[Result "1-0"]
[ECO "D31"]
[WhiteElo "2284"]
[BlackElo "2383"]
[Annotator "RC"]
[PlyCount "75"]
[EventDate "2023.11.13"]
[EventType "swiss"]
[EventCountry "ITA"]
[SourceTitle "playchess.com"]
[Source "ChessBase"]
[SourceQuality "1"]
[TimeControl "40/5400+30:1800+30"]

1. d4 {[%emt 0:00:04]} d5 {[%emt 0:00:38]} 2. c4 {[%emt 0:00:05]} e6 {[%emt 0:00:06]} 3. Nc3 {[%emt 0:00:15]} a6 {[%emt 0:00:23]} 4. cxd5 {[%emt 0:01:04]} exd5 {[%emt 0:00:07]} 5. Qb3 {[%emt 0:00:54]} c5 {[%emt 0:00:46]} 6. Nxd5 {[%emt 0:01:00]} Nc6 {[%emt 0:00:44]} 7. Bg5 {[%emt 0:01:35]} Nge7 {[%emt 0:02:16]} 8. Nb6 {[%emt 0:01:00]} Nxd4 {[%emt 0:02:49]} 9. Qa4+ {[%emt 0:01:04]} Bd7 {[%emt 0:00:09]} 10. Qxd7+ {[%emt 0:00:38]} Qxd7 {[%emt 0:00:01]} 11. Nxd7 {[%emt 0:00:02]} Nc2+ {[%emt 0:03:56]} 12. Kd1 {[%emt 0:01:48]} Nxa1 {[%emt 0:00:01]} 13. Nb6 {[%emt 0:00:22]} Rd8+ {[%emt 0:00:32]} 14. Kc1 {[%emt 0:00:06]} Rd6 {[%emt 0:33:38]} 15. Nc4 {[%emt 0:06:32]} Re6 {[%emt 0:05:02]} 16. Bd2 {[%emt 0:18:59]} b5 {[%emt 0:11:07]} 17. Ne3 {[%emt 0:07:31]} Nc6 {[%emt 0:04:32]} 18. Kb1 {[%emt 0:05:59]} Rd6 {[%emt 0:06:36]} 19. Nf3 {[%emt 0:02:15]} Nd4 {[%emt 0:00:26]} 20. Nxd4 {[%emt 0:05:53]} Rxd4 {[%emt 0:01:51]} 21. Bc1 {[%emt 0:02:04]} g6 {[%emt 0:05:16]} 22. Kxa1 {[%emt 0:02:46]} Bh6 {[%emt 0:01:47]} 23. Kb1 {[%emt 0:01:19]} O-O {[%emt 0:01:07]} 24. g3 {[%emt 0:05:59]} Rfd8 {[%emt 0:01:42]} 25. Bg2 {[%emt 0:00:43]} Bg7 {[%emt 0:01:05]} 26. Kc2 {[%emt 0:02:14]} f5 {[%emt 0:04:21]} 27. Rd1 {[%emt 0:02:18]} Kf7 {[%emt 0:00:37]} 28. Rxd4 {[%emt 0:01:07]} Bxd4 {[%emt 0:00:07]} 29. Bb7 {[%emt 0:01:29]} Rd6 {[%emt 0:00:19]} 30. Nd1 {[%emt 0:00:21]} Rb6 {[%emt 0:03:27]} 31. Bd5+ {[%emt 0:02:28]} Kf6 {[%emt 0:00:17]} 32. e3 {[%emt 0:01:24]} Be5 {[%emt 0:00:06]} 33. f4 {[%emt 0:00:51]} Bc7 {[%emt 0:00:06]} 34. e4 {[%emt 0:00:49]} fxe4 {[%emt 0:00:08]} 35. Be3 {[%emt 0:00:37]} Rd6 {[%emt 0:00:40]} 36. Nc3 {[%emt 0:00:38]} Kf5 {[%emt 0:00:43]} 37. h3 {[%emt 0:00:25]} h5 {[%emt 0:00:13]} 38. Bxe4+ {[%emt 0:01:27]} 1-0

[Event "FIDE WYCC Open U14 2023"]
[Site "Montesilvano"]
[Date "2023.11.21"]
[Round "8.3"]
[White "Haug, Havard"]
[Black "Daakshin Arun"]
[Result "1/2-1/2"]
[ECO "B22"]
[WhiteElo "2223"]
[BlackElo "2342"]
[Annotator "RC"]
[PlyCount "127"]
[EventDate "2023.11.13"]
[EventType "swiss"]
[EventCountry "ITA"]
[SourceTitle "playchess.com"]
[Source "ChessBase"]
[SourceQuality "1"]
[TimeControl "40/5400+30:1800+30"]

1. e4 {[%emt 0:00:14]} c5 {[%emt 0:00:05]} 2. c3 {[%emt 0:00:34]} Nf6 {[%emt 0:00:23]} 3. e5 {[%emt 0:00:07]} Nd5 {[%emt 0:00:04]} 4. Nf3 {[%emt 0:00:05]} d6 {[%emt 0:00:45]} 5. Bb5+ {[%emt 0:00:21]} Bd7 {[%emt 0:01:30]} 6. Bc4 {[%emt 0:00:16]} e6 {[%emt 0:00:55]} 7. d4 {[%emt 0:00:41]} cxd4 {[%emt 0:01:30]} 8. cxd4 {[%emt 0:01:13]} dxe5 {[%emt 0:05:54]} 9. dxe5 {[%emt 0:01:40]} Bc6 {[%emt 0:04:33]} 10. O-O {[%emt 0:03:53]} Be7 {[%emt 0:02:25]} 11. Nd4 {[%emt 0:04:33]} O-O {[%emt 0:08:51]} 12. Nxc6 {[%emt 0:01:19]} Nxc6 {[%emt 0:01:50]} 13. Qe2 {[%emt 0:05:07]} Qc7 {[%emt 0:07:13]} 14. Bxd5 {[%emt 0:02:54]} exd5 {[%emt 0:00:30]} 15. Nc3 {[%emt 0:06:19]} Rad8 {[%emt 0:05:36]} 16. Bf4 {[%emt 0:03:54]} d4 {[%emt 0:05:39]} 17. Nb5 {[%emt 0:06:19]} Qd7 {[%emt 0:10:32]} 18. Nd6 {[%emt 0:11:08]} Nxe5 {[%emt 0:05:50]} 19. Bxe5 {[%emt 0:05:33]} Bxd6 {[%emt 0:00:13]} 20. Bxd4 {[%emt 0:00:36]} Bxh2+ {[%emt 0:00:24]} 21. Kxh2 {[%emt 0:00:04]} Qxd4 {[%emt 0:00:07]} 22. Rad1 {[%emt 0:00:13]} Rde8 {[%emt 0:10:36]} 23. Qd2 {[%emt 0:03:45]} Qh4+ {[%emt 0:00:47]} 24. Kg1 {[%emt 0:00:01]} Re6 {[%emt 0:03:18]} 25. g3 {[%emt 0:00:53]} Qh3 {[%emt 0:05:11]} 26. Rfe1 {[%emt 0:02:36]} Rfe8 {[%emt 0:05:22]} 27. Rxe6 {[%emt 0:00:40]} Qxe6 {[%emt 0:00:09]} 28. Qd7 {[%emt 0:00:16]} h5 {[%emt 0:04:13]} 29. Qxe6 {[%emt 0:05:09]} Rxe6 {[%emt 0:00:40]} 30. Rd7 {[%emt 0:00:12]} Rb6 {[%emt 0:00:06]} 31. b3 {[%emt 0:00:05]} g6 {[%emt 0:01:23]} 32. Kg2 {[%emt 0:00:09]} Kg7 {[%emt 0:00:15]} 33. Kf3 {[%emt 0:01:12]} Kf6 {[%emt 0:00:45]} 34. Rc7 {[%emt 0:00:29]} Ke6 {[%emt 0:00:38]} 35. Ke3 {[%emt 0:03:04]} Rb5 {[%emt 0:00:42]} 36. Kf3 {[%emt 0:02:40]} a5 {[%emt 0:01:27]} 37. Ke3 {[%emt 0:00:12]} Rb4 {[%emt 0:01:43]} 38. Rc5 {[%emt 0:00:46]} a4 {[%emt 0:03:38]} 39. bxa4 {[%emt 0:00:15]} Rxa4 {[%emt 0:00:04]} 40. Rb5 {[%emt 0:00:00]} Ra3+ {[%emt 0:00:00]} 41. Ke4 {[%emt 0:01:24]} f5+ {[%emt 0:02:43]} 42. Kd4 {[%emt 0:00:25]} f4 {[%emt 0:01:27]} 43. gxf4 {[%emt 0:01:24]} Rxa2 {[%emt 0:04:01]} 44. f5+ {[%emt 0:01:48]} gxf5 {[%emt 0:03:45]} 45. Rb6+ {[%emt 0:00:06]} Kf7 {[%emt 0:00:04]} 46. Rxb7+ {[%emt 0:00:03]} Kg6 {[%emt 0:00:17]} 47. Ke3 {[%emt 0:00:06]} h4 {[%emt 0:01:14]} 48. Kf3 {[%emt 0:00:45]} Ra3+ {[%emt 0:03:24]} 49. Kg2 {[%emt 0:00:30]} h3+ {[%emt 0:00:39]} 50. Kh2 {[%emt 0:00:09]} Rf3 {[%emt 0:02:02]} 51. Rb8 {[%emt 0:07:08]} Kg5 {[%emt 0:01:02]} 52. Rh8 {[%emt 0:01:33]} Kg4 {[%emt 0:04:02]} 53. Kg1 {[%emt 0:05:21]} Ra3 {[%emt 0:00:42]} 54. Rg8+ {[%emt 0:00:16]} Kf4 {[%emt 0:00:05]} 55. Kh2 {[%emt 0:00:43]} Ra2 {[%emt 0:00:26]} 56. Kxh3 {[%emt 0:02:34]} Rxf2 {[%emt 0:00:19]} 57. Ra8 {[%emt 0:00:50]} Re2 {[%emt 0:00:25]} 58. Rf8 {[%emt 0:00:28]} Ra2 {[%emt 0:01:36]} 59. Rf7 {[%emt 0:01:14]} Re2 {[%emt 0:01:11]} 60. Rf8 {[%emt 0:00:26]} Rf2 {[%emt 0:00:40]} 61. Ra8 {[%emt 0:00:18]} Rd2 {[%emt 0:00:51]} 62. Rf8 {[%emt 0:00:18]} Rf2 {[%emt 0:00:15]} 63. Ra8 {[%emt 0:00:07]} Ke3 {[%emt 0:01:44]} 64. Ra3+ {[%emt 0:00:12]} 1/2-1/2

[Event "FIDE WYCC Open U14 2023"]
[Site "Montesilvano"]
[Date "2023.11.21"]
[Round "8.4"]
[White "Bharadia Yash"]
[Black "Dotzer, Lukas"]
[Result "1/2-1/2"]
[ECO "B48"]
[WhiteElo "2071"]
[BlackElo "2339"]
[Annotator "RC"]
[PlyCount "58"]
[EventDate "2023.11.13"]
[EventType "swiss"]
[EventCountry "ITA"]
[SourceTitle "playchess.com"]
[Source "ChessBase"]
[SourceQuality "1"]
[TimeControl "40/5400+30:1800+30"]

1. e4 {[%emt 0:00:04]} c5 {[%emt 0:00:04]} 2. Nf3 {[%emt 0:00:05]} e6 {[%emt 0:00:05]} 3. d4 {[%emt 0:00:07]} cxd4 {[%emt 0:00:04]} 4. Nxd4 {[%emt 0:00:06]} Nc6 {[%emt 0:00:10]} 5. Nc3 {[%emt 0:00:06]} Qc7 {[%emt 0:00:05]} 6. Be3 {[%emt 0:00:06]} a6 {[%emt 0:00:04]} 7. a3 {[%emt 0:00:05]} b5 {[%emt 0:00:09]} 8. Nxc6 {[%emt 0:00:34]} Qxc6 {[%emt 0:00:07]} 9. Be2 {[%emt 0:01:17]} Bb7 {[%emt 0:00:29]} 10. O-O {[%emt 0:01:32]} Rc8 {[%emt 0:00:38]} 11. f4 {[%emt 0:19:38]} Bc5 {[%emt 0:04:19]} 12. Qd2 {[%emt 0:03:11]} Nf6 {[%emt 0:15:50]} 13. Bf3 {[%emt 0:00:20]} Bxe3+ {[%emt 0:01:57]} 14. Qxe3 {[%emt 0:00:04]} Qc5 {[%emt 0:00:38]} 15. Qxc5 {[%emt 0:10:17]} Rxc5 {[%emt 0:00:25]} 16. e5 {[%emt 0:02:34]} Bxf3 {[%emt 0:01:19]} 17. Rxf3 {[%emt 0:04:25]} Nd5 {[%emt 0:00:19]} 18. Nxd5 {[%emt 0:00:29]} Rxd5 {[%emt 0:00:54]} 19. Rd3 {[%emt 0:04:44]} Rxd3 {[%emt 0:12:08]} 20. cxd3 {[%emt 0:00:10]} d6 {[%emt 0:06:58]} 21. a4 {[%emt 0:09:12]} b4 {[%emt 0:01:43]} 22. Rc1 {[%emt 0:16:02]} Kd7 {[%emt 0:00:44]} 23. Rc4 {[%emt 0:10:14]} a5 {[%emt 0:06:05]} 24. exd6 {[%emt 0:01:31]} Kxd6 {[%emt 0:03:22]} 25. Kf2 {[%emt 0:00:29]} Re8 {[%emt 0:07:52]} 26. Rd4+ {[%emt 0:06:23]} Kc6 {[%emt 0:03:00]} 27. Rc4+ {[%emt 0:00:39]} Kd6 {[%emt 0:01:05]} 28. Rd4+ {[%emt 0:04:04]} Kc6 {[%emt 0:00:17]} 29. Rc4+ {[%emt 0:00:51]} Kd6 1/2-1/2

[Event "FIDE WYCC Open U14 2023"]
[Site "Montesilvano"]
[Date "2023.11.21"]
[Round "8.5"]
[White "Prokhorov, Aleksey"]
[Black "Perossa, Nicolas"]
[Result "1-0"]
[ECO "C64"]
[WhiteElo "1869"]
[BlackElo "2330"]
[Annotator "RC"]
[PlyCount "97"]
[EventDate "2023.11.13"]
[EventType "swiss"]
[EventCountry "ITA"]
[SourceTitle "playchess.com"]
[Source "ChessBase"]
[SourceQuality "1"]
[TimeControl "40/5400+30:1800+30"]

1. e4 {[%emt 0:01:00]} e5 {[%emt 0:00:07]} 2. Nf3 {[%emt 0:01:00]} Nc6 {[%emt 0:00:08]} 3. Bb5 {[%emt 0:00:59]} Bc5 {[%emt 0:01:51]} 4. O-O {[%emt 0:01:01]} Nd4 {[%emt 0:00:19]} 5. Nxd4 {[%emt 0:01:16]} Bxd4 {[%emt 0:00:41]} 6. c3 {[%emt 0:01:26]} Bb6 {[%emt 0:00:01]} 7. d4 {[%emt 0:01:26]} c6 {[%emt 0:00:10]} 8. Ba4 {[%emt 0:00:41]} d6 {[%emt 0:02:13]} 9. Na3 {[%emt 0:09:10]} Nf6 {[%emt 0:02:44]} 10. Nc4 {[%emt 0:02:44]} Bc7 {[%emt 0:01:21]} 11. Bc2 {[%emt 0:00:23]} Qe7 {[%emt 0:36:40]} 12. Bg5 {[%emt 0:05:09]} b5 {[%emt 0:07:47]} 13. dxe5 {[%emt 0:02:17]} dxe5 {[%emt 0:01:08]} 14. Ne3 {[%emt 0:00:18]} h6 {[%emt 0:03:24]} 15. Nf5 {[%emt 0:01:32]} Bxf5 {[%emt 0:01:14]} 16. Bxf6 {[%emt 0:00:56]} Qxf6 {[%emt 0:00:09]} 17. exf5 {[%emt 0:00:10]} O-O {[%emt 0:05:40]} 18. Be4 {[%emt 0:01:07]} Rad8 {[%emt 0:04:37]} 19. Qe2 {[%emt 0:00:09]} Rd6 {[%emt 0:00:26]} 20. Rfd1 {[%emt 0:00:29]} Rfd8 {[%emt 0:00:08]} 21. g3 {[%emt 0:01:11]} Bb6 {[%emt 0:09:14]} 22. Bc2 {[%emt 0:14:42]} e4 {[%emt 0:12:15]} 23. Rxd6 {[%emt 0:04:05]} Rxd6 {[%emt 0:00:16]} 24. Bxe4 {[%emt 0:03:02]} Qd8 {[%emt 0:01:20]} 25. Bf3 {[%emt 0:00:16]} Qf6 {[%emt 0:01:07]} 26. Kg2 {[%emt 0:03:06]} Rd8 {[%emt 0:01:43]} 27. Qc2 {[%emt 0:03:07]} Re8 {[%emt 0:01:21]} 28. Rd1 {[%emt 0:02:57]} Re5 {[%emt 0:01:03]} 29. Be4 {[%emt 0:02:18]} Qe7 {[%emt 0:03:37]} 30. Bf3 {[%emt 0:02:57]} Qc5 {[%emt 0:00:46]} 31. Be4 {[%emt 0:03:52]} Qc4 {[%emt 0:00:49]} 32. Bf3 {[%emt 0:00:20]} Qc5 {[%emt 0:00:15]} 33. Be4 {[%emt 0:00:21]} Qc4 {[%emt 0:00:14]} 34. Bf3 {[%emt 0:00:07]} Qxa2 {[%emt 0:00:59]} 35. Bxc6 {[%emt 0:00:42]} Qc4 {[%emt 0:00:02]} 36. Bf3 {[%emt 0:00:18]} Qc5 {[%emt 0:01:43]} 37. Rd2 {[%emt 0:07:37]} Rxf5 {[%emt 0:00:42]} 38. b4 {[%emt 0:00:36]} Qc8 {[%emt 0:00:12]} 39. Rd5 {[%emt 0:00:07]} Rf6 {[%emt 0:00:34]} 40. Qd3 {[%emt 0:00:00]} Rc6 {[%emt 0:00:00]} 41. Qxb5 {[%emt 0:04:23]} Rxc3 {[%emt 0:01:18]} 42. Re5 {[%emt 0:00:08]} Kh7 {[%emt 0:07:25]} 43. Re8 {[%emt 0:01:23]} Bd8 {[%emt 0:05:12]} 44. Be4+ {[%emt 0:01:22]} g6 {[%emt 0:00:04]} 45. Qd5 {[%emt 0:00:20]} Qc4 {[%emt 0:01:03]} 46. Qxd8 {[%emt 0:01:24]} Rc1 {[%emt 0:01:49]} 47. Rh8+ {[%emt 0:00:17]} Kg7 {[%emt 0:00:02]} 48. Rg8+ {[%emt 0:00:12]} Kh7 {[%emt 0:00:00]} 49. Bxg6+ {[%emt 0:00:28]} 1-0

[Event "FIDE WYCC Open U14 2023"]
[Site "Montesilvano"]
[Date "2023.11.21"]
[Round "8.6"]
[White "Gkavardinas, Antonios"]
[Black "Arca, Christian Gian Karlo"]
[Result "0-1"]
[ECO "B19"]
[WhiteElo "2230"]
[BlackElo "2347"]
[Annotator "RC"]
[PlyCount "108"]
[EventDate "2023.11.13"]
[EventType "swiss"]
[EventCountry "ITA"]
[SourceTitle "playchess.com"]
[Source "ChessBase"]
[SourceQuality "1"]
[TimeControl "40/5400+30:1800+30"]

1. e4 {[%emt 0:00:03]} c6 {[%emt 0:00:16]} 2. d4 {[%emt 0:00:09]} d5 {[%emt 0:00:05]} 3. Nc3 {[%emt 0:00:07]} dxe4 {[%emt 0:00:05]} 4. Nxe4 {[%emt 0:00:06]} Bf5 {[%emt 0:00:02]} 5. Ng3 {[%emt 0:00:11]} Bg6 {[%emt 0:00:04]} 6. h4 {[%emt 0:00:09]} h6 {[%emt 0:00:04]} 7. Nf3 {[%emt 0:00:08]} Nd7 {[%emt 0:00:04]} 8. h5 {[%emt 0:00:09]} Bh7 {[%emt 0:00:04]} 9. Bd3 {[%emt 0:00:18]} Bxd3 {[%emt 0:00:05]} 10. Qxd3 {[%emt 0:00:09]} e6 {[%emt 0:00:06]} 11. Bd2 {[%emt 0:00:18]} Be7 {[%emt 0:00:06]} 12. O-O-O {[%emt 0:00:25]} Ngf6 {[%emt 0:00:03]} 13. Kb1 {[%emt 0:00:15]} O-O {[%emt 0:00:06]} 14. Qe2 {[%emt 0:00:29]} Re8 {[%emt 0:01:44]} 15. Ne5 {[%emt 0:03:58]} Qc7 {[%emt 0:02:33]} 16. c4 {[%emt 0:05:13]} c5 {[%emt 0:10:50]} 17. Bc3 {[%emt 0:09:38]} cxd4 {[%emt 0:07:48]} 18. Bxd4 {[%emt 0:00:11]} Rad8 {[%emt 0:00:29]} 19. f4 {[%emt 0:04:18]} Nxe5 {[%emt 0:09:22]} 20. fxe5 {[%emt 0:02:41]} Nh7 {[%emt 0:01:12]} 21. Ne4 {[%emt 0:10:31]} Ng5 {[%emt 0:02:09]} 22. Nc3 {[%emt 0:05:47]} a6 {[%emt 0:02:19]} 23. Rd2 {[%emt 0:06:30]} Rc8 {[%emt 0:05:20]} 24. b3 {[%emt 0:01:30]} Bb4 {[%emt 0:01:01]} 25. Rd3 {[%emt 0:04:48]} Red8 {[%emt 0:10:06]} 26. Ne4 {[%emt 0:06:06]} Nxe4 {[%emt 0:02:48]} 27. Qxe4 {[%emt 0:00:03]} b5 {[%emt 0:00:54]} 28. Rc1 {[%emt 0:02:39]} Qd7 {[%emt 0:15:50]} 29. Qg4 {[%emt 0:09:53]} bxc4 {[%emt 0:01:29]} 30. bxc4 {[%emt 0:02:46]} Rb8 {[%emt 0:10:27]} 31. Ka1 {[%emt 0:08:06]} Bc5 {[%emt 0:04:21]} 32. Rcd1 {[%emt 0:01:12]} Qa4 {[%emt 0:02:10]} 33. Bc3 {[%emt 0:10:36]} Rxd3 {[%emt 0:00:52]} 34. Rxd3 {[%emt 0:00:02]} Qc2 {[%emt 0:00:24]} 35. Qd1 {[%emt 0:00:10]} Qxg2 {[%emt 0:00:20]} 36. Rd8+ {[%emt 0:02:11]} Rxd8 {[%emt 0:00:09]} 37. Qxd8+ {[%emt 0:00:01]} Kh7 {[%emt 0:00:16]} 38. Qd3+ {[%emt 0:01:53]} g6 {[%emt 0:00:12]} 39. hxg6+ {[%emt 0:01:42]} Qxg6 {[%emt 0:00:18]} 40. Qf3 {[%emt 0:00:00]} Qf5 {[%emt 0:00:00]} 41. Qb7 {[%emt 0:12:40]} h5 {[%emt 0:04:55]} 42. Qc7 {[%emt 0:04:08]} Ba3 {[%emt 0:03:43]} 43. Qa5 {[%emt 0:03:29]} Qf1+ {[%emt 0:00:29]} 44. Be1 {[%emt 0:00:02]} h4 {[%emt 0:03:45]} 45. Qc3 {[%emt 0:01:23]} Qe2 {[%emt 0:01:29]} 46. Qxa3 {[%emt 0:02:15]} Qxe1+ {[%emt 0:00:44]} 47. Kb2 {[%emt 0:00:05]} Qe2+ {[%emt 0:00:11]} 48. Kb1 {[%emt 0:00:41]} Qf1+ {[%emt 0:00:17]} 49. Kb2 {[%emt 0:00:18]} h3 {[%emt 0:02:01]} 50. Qe7 {[%emt 0:00:53]} Qf2+ {[%emt 0:00:25]} 51. Kb3 {[%emt 0:00:51]} h2 {[%emt 0:00:43]} 52. Qb7 {[%emt 0:00:12]} Qf1 {[%emt 0:00:48]} 53. Qe4+ {[%emt 0:00:32]} Kg7 {[%emt 0:00:26]} 54. Qg4+ {[%emt 0:00:45]} Kf8 {[%emt 0:00:09]} 0-1